Cogmind - Beta 14 @@@ ROGUE MODE // 2025.01.11 @ 19:50:35 Player: Swagumen Result: Destroyed by D-53 Grenadier with Mini Grenade Launcher Performance ------------- Evolutions (0) 0 Regions Visited (2) 400 Robots Destroyed (29) 145 Value Destroyed (625) 625 Prototype IDs (0) 0 Alien Tech Used (0) 0 Bonus (0) 0 TOTAL SCORE: 1170 Bonus ------- None Cogmind --------- Core Integrity 0/250 Matter 300/300 Energy 100/100 System Corruption 0% Temperature Cool (0) Movement Treading (160) Location -10/Mines Parts ------- > --- POWER (1) -------- (None) > --- PROPULSION (2) --- Light Treads Light Treads > --- UTILITY (2) ------ Medium Storage Unit Seismic Detector > --- WEAPON (2) ------- Particle Gun > --- INVENTORY (10) --- Flight Unit Flight Unit Flight Unit Faulty Experimental Sensor Array Signal Interpreter Beam Rifle Beam Rifle Grenade Launcher Datajack Datajack Peak State ------------ > --- POWER ------------ Light Ion Engine > --- PROPULSION ------- Light Treads Light Treads > --- UTILITY ---------- Medium Storage Unit Seismic Detector > --- WEAPON ----------- Beam Rifle Beam Rifle > --- INVENTORY -------- Flight Unit Flight Unit Flight Unit Experimental Sensor Array Signal Interpreter Beam Rifle Beam Rifle Grenade Launcher Datajack Datajack [Rating: 11] Favorites ----------- Power Light Ion Engine Engine Light Ion Engine Propulsion Light Treads Treads Light Treads Utility Seismic Detector Device Seismic Detector Storage Medium Storage Unit Weapon Beam Rifle Energy Gun Beam Rifle Ballistic Gun Assault Rifle Build | -11 -10 -10 ------- Run | Yrd Mat Min Slots Evolved . | . . . Power . | . . . Propulsion . | . . . Utility . | . . . Weapon . | . . . Parts Attached 18 | 8 5 5 Power 4 | 1 1 2 Engine 4 | 1 1 2 Core . | . . . Reactor . | . . . Propulsion 5 | 2 1 2 Treads 5 | 2 1 2 Leg . | . . . Wheel . | . . . Hover . | . . . Flight . | . . . Utility 4 | 3 1 . Device 2 | 2 . . Storage 2 | 1 1 . Processor . | . . . Hackware . | . . . Protection . | . . . Artifact . | . . . Weapon 5 | 2 2 1 Energy Gun 4 | 1 2 1 Energy Cannon . | . . . Ballistic Gun 1 | 1 . . Ballistic Cannon . | . . . Launcher . | . . . Special Weapon . | . . . Impact Weapon . | . . . Slashing Weapon . | . . . Piercing Weapon . | . . . Special Melee Weapon . | . . . Unidentified Prototypes . | . . . Parts Lost 5 | . 2 3 Power 3 | . 2 1 Propulsion 1 | . . 1 Utility . | . . . Weapon 1 | . . 1 Highest Loss Streak 2 | . 1 2 To Critical Strikes . | . . . Average Slot Usage (%) 95 | . 92 99 Engine 9 | . 7 14 Treads 27 | . 27 27 Device 14 | . 14 14 Storage 14 | . 14 14 Energy Gun 23 | . 20 28 Ballistic Gun 4 | . 7 . Peak Build Rating 11 | 8 10 11 Average Rating 8 | 3 7 10 On Entrance 5 | . 7 9 Naked Turns . | . . . Heaviest Build 20 | 12 20 20 Greatest Support 40 | 40 40 40 Greatest Overweight (x) . | . . . Average Overweight (x) . | . . . Largest Inventory Capacity 10 | 8 10 10 Average Capacity 9 | 5 9 10 Most Carried 10 | 5 10 10 Average Carried 6 | 2 4 10 Final Capacity 10 | 8 10 10 Final Carried 10 | 1 10 10 Class Distribution -------------------- 80% | Mutant 19% | Scavenger-Mutant Dominant Class ---------------- Mutant | -10/Materials Scavenger-Mutant | -10/Mines Resources | -11 -10 -10 ----------- Run | Yrd Mat Min Matter Collected 474 | 219 220 35 Remotely . | . . . Salvage Created 1209 | 162 655 392 Parts 64 | 13 35 16 Haulers Intercepted . | . . . Recyclers Shooed 3 | . 2 1 Parts Field Recycled . | . . . Retrieved Matter . | . . . Parts Self-Destructed . | . . . Prevented . | . . . Kills | -11 -10 -10 ------- Run | Yrd Mat Min Combat Hostiles Destroyed 14 | . 10 4 Guns 13 | . 9 4 Classes Destroyed 8 | 2 5 1 Worker 2 | . 1 1 Tunneler 3 | 3 . . Recycler 6 | 1 2 3 Operator 1 | . 1 . Watcher 3 | . 3 . Swarmer 2 | . 2 . Grunt 10 | . 8 2 Sentry 2 | . . 2 Best Kill Streak 3 | 2 3 3 Combat Bots Only 2 | . 2 2 Max Kills in Single Turn 2 | 1 2 2 Gunslinging . | . . . Exploded . | . . . Melee . | . . . Uniques/NPCs Destroyed . | . . . Combat | -11 -10 -10 -------- Run | Yrd Mat Min Hostile Shots Fired 100 | . 63 37 Missed 28 | . 21 7 Damage Taken 1093 | . 497 596 Core 253 | . 114 139 Absorbed by Shields . | . . . Regen/Repaired (Parts) 135 | . 135 . Core Remaining (%) 100 | 100 . . Volleys Fired 75 | 9 50 16 Largest 2 | 2 2 2 Hottest 121 | 60 112 121 Shots Fired 150 | 18 100 32 Gun 150 | 18 100 32 Cannon . | . . . Launcher . | . . . Special . | . . . Kinetic 38 | 9 29 . Thermal 112 | 9 71 32 Explosive . | . . . Electromagnetic . | . . . Robot Hit Streak 20 | 4 20 11 Robot Miss Streak 3 | 2 3 2 Penetration Max . | . . . Secondary Targets 3 | . 2 1 Max Gunslinging Chain 1 | . 1 1 Shots Hit Robots 103 | 9 71 23 Core Hits 45 | 5 29 11 Critical Kills . | . . . Critical Parts Destroyed . | . . . Critical Strikes 8 | . 6 2 Burn 8 | . 6 2 Melee Attacks . | . . . Impact . | . . . Slashing . | . . . Piercing . | . . . Sneak Attacks . | . . . Combat Hostiles . | . . . Follow-up Attacks . | . . . Damage Inflicted 1440 | 113 946 381 Guns 1440 | 113 946 381 Cannons . | . . . Explosions . | . . . Melee . | . . . Ramming . | . . . Kinetic 326 | 36 290 . Thermal 1114 | 77 656 381 Explosive . | . . . Electromagnetic . | . . . Impact . | . . . Slashing . | . . . Piercing . | . . . Highest Corruption . | . . . Average Corruption . | . . . Corruption Purged . | . . . Corruption Blocked . | . . . Overload Shots . | . . . Overflow Damage . | . . . Projectiles . | . . . Explosions . | . . . Melee . | . . . Knockbacks . | . . . Impact . | . . . Kinetic . | . . . Secondary . | . . . Self-Inflicted Damage . | . . . Shots . | . . . Rammed . | . . . Targets Rammed . | . . . Kicked . | . . . Crushed . | . . . Highest Temperature 288 | . 241 288 Average Temperature 81 | . 69 100 Received Heat Transfer 444 | . 303 141 Effects 4 | . 4 . Energy Bleed 1 | . 1 . Interference 3 | . 3 . Siege Activations . | . . . Robots Corrupted . | . . . Combat Hostiles . | . . . Parts Fried . | . . . Impact Corruptions . | . . . Robots Melted 1 | . 1 . Combat Hostiles 1 | . 1 . Parts Melted 3 | . 3 . Heat Transferred 3351 | 175 2066 1110 Parts Sabotaged . | . . . Parts Stolen . | . . . Parts Stripped . | . . . Power Chain Reactions . | . . . Alert | -11 -10 -10 ------- Run | Yrd Mat Min Peak Influence 229 | 20 229 128 Initial 73 | . 13 73 Average 92 | 5 108 83 Maximum Alert Level 1 | . 1 . Low Security (%) 95 | 100 91 100 Level 1 4 | . 8 . Level 2 . | . . . Level 3 . | . . . Level 4 . | . . . Level 5 . | . . . High Security . | . . . Max Security . | . . . Squads Dispatched 1 | . 1 . Investigation . | . . . Extermination . | . . . Reinforcement 1 | . 1 . Assault . | . . . Garrison . | . . . Intercept . | . . . Searches Triggered . | . . . Construction Impeded . | . . . Haulers Reinforced . | . . . Active Scanning Responses . | . . . Cargo Convoy Interrupts . | . . . Stealth | -11 -10 -10 --------- Run | Yrd Mat Min Distress Signals . | . . . Communications Jammed . | . . . Distress Signals . | . . . Times Spotted 24 | . 18 6 Peak Tracking Total 5 | . 5 2 Tactical Retreats 2 | . 2 . Traps | -11 -10 -10 ------- Run | Yrd Mat Min Traps Triggered . | . . . Indirectly . | . . . Trap Hack Attempts . | . . . Triggered . | . . . Disarmed . | . . . Reprogrammed . | . . . Reused . | . . . Traps Extracted . | . . . Installed . | . . . Triggered . | . . . Machines | -11 -10 -10 ---------- Run | Yrd Mat Min Machines Disabled 1 | . . 1 Max in Single Turn 1 | . . 1 Machines Repaired . | . . . Machines Dismantled . | . . . Machines Sabotaged . | . . . Overloaded Fab Kills . | . . . Hacking | -11 -10 -10 --------- Run | Yrd Mat Min Machines Accessed 7 | . 7 . Terminals 5 | . 5 . Fabricators . | . . . Repair Stations 1 | . 1 . Recycling Units 1 | . 1 . Scanalyzers . | . . . Garrison Access . | . . . Total Hacks 12 | . 12 . Successful 8 | . 8 . Failed 4 | . 4 . Catastrophic . | . . . Database Lockouts . | . . . Manual . | . . . Terminals 9 | . 9 . Fabricators . | . . . Repair Stations 2 | . 2 . Recycling Units 1 | . 1 . Scanalyzers . | . . . Garrison Access . | . . . Terminal Hacks 5 | . 5 . Robot Analysis 1 | . 1 . Branch Access Points 1 | . 1 . Emergency Access Points 1 | . 1 . Registered Components 1 | . 1 . Zone Layout 1 | . 1 . Fabricator Hacks . | . . . Repair Station Hacks 2 | . 2 . Scan Component 1 | . 1 . Repair 1 | . 1 . Recycling Unit Hacks 1 | . 1 . Report Inventory 1 | . 1 . Scanalyzer . | . . . Garrison Access Hacks . | . . . Unauthorized Hacks . | . . . Terminals . | . . . Fabricators . | . . . Repair Stations . | . . . Recycling Units . | . . . Scanalyzers . | . . . Garrison Access . | . . . Data Cores Recovered . | . . . Used . | . . . Hacking Detections 5 | . 5 . Full Trace Events . | . . . Feedback Events . | . . . Feedback Blocked . | . . . Robot Schematics Acquired . | . . . Robots Built . | . . . Authchips . | . . . Time . | . . . Total Robot Build Rating . | . . . Part Schematics Acquired . | . . . Parts Built . | . . . Authchips . | . . . Time . | . . . Total Part Build Rating . | . . . Parts Repaired 1 | . 1 . Time 26 | . 26 . Parts Recycled . | . . . Recycled Matter . | . . . Retrieved Matter . | . . . Retrieved Components . | . . . Parts Scanalyzed . | . . . Part Schematics Acquired . | . . . Parts Damaged . | . . . Bothacking | -11 -10 -10 ------------ Run | Yrd Mat Min Used RIF Installer . | . . . Robots Hacked . | . . . Non-combat . | . . . Combat . | . . . Robot Hacks Applied . | . . . Relay Couplers Released . | . . . Fabnet Peak Effective % . | . . . Robots Rewired . | . . . Allies Hacked . | . . . Hacks Repelled . | . . . Allies | -11 -10 -10 -------- Run | Yrd Mat Min Total Allies . | . . . Largest Group . | . . . Highest-Rated Group . | . . . Highest-Rated Ally . | . . . Total Orders . | . . . Ally Attacks . | . . . Total Damage . | . . . Kills . | . . . Allies Corrupted . | . . . Allies Melted . | . . . Intel | -11 -10 -10 ------- Run | Yrd Mat Min Robot Analysis Total 1 | . 1 . Derelict Logs Recovered . | . . . Drone Launches . | . . . Drone Recoveries . | . . . Exploration | -11 -10 -10 ------------- Run | Yrd Mat Min Turns Passed 1385 | 95 755 535 Spaces Moved 682 | 34 349 299 Core 3 | 3 . . Treads 679 | 31 349 299 Legs . | . . . Wheels . | . . . Hover . | . . . Flight . | . . . Fastest Speed 50 | 50 160 160 Average Speed 159 | 150 160 160 Slowest Speed 160 | 160 160 160 Overloaded Moves . | . . . Propulsion Burnouts . | . . . Robots Hopped . | . . . Cave-ins Triggered . | . . . Exploration Rate (%) 46 | 5 66 68 Regions Visited 2 Branch Regions 1 Pre-discovered Areas . | . . . Known Exits Taken 1 | . 1 . Unknown Exits Taken 1 | 1 . . Scrap Searched . | . . . Spaces Dug . | . . . Terrain Destroyed . | . . . Melee . | . . . Projectile . | . . . AOE . | . . . Terrain Rammed . | . . . Walls Destroyed . | . . . Machines Disabled . | . . . Actions | -11 -10 -10 --------- Run | Yrd Mat Min Total 831 | 60 446 325 Wait 26 | . 26 . Move 680 | 33 348 299 Hop . | . . . Pick Up 24 | 9 14 1 Fast Attach 2 | . . 2 Attach 9 | 7 2 . Detach . | . . . Swap 7 | 1 3 3 Drop 8 | 1 3 4 Fire 75 | 9 50 16 Melee . | . . . Ram . | . . . Kick . | . . . Crush . | . . . Escape Stasis . | . . . Rewire . | . . . Trap . | . . . Miscellaneous . | . . . Route ------- -11/Scrapyard -10/Materials (discovered 4 exits: [*Mat x3] / *Min) -10/Mines (discovered 1 exit: [*Exi]) History --------- Turn | Location | Event 36 | -11/Scrapyard | Discovered new exit (range 16) 96 | -11/Scrapyard | Entered Materials 241 | -10/Materials | Discovered new exit (range 6) 302 | -10/Materials | Build established: Mutant 359 | -10/Materials | Identified exit to Mines 467 | -10/Materials | Discovered new exit (range 16) 677 | -10/Materials | Discovered new exit (range 5) 757 | -10/Materials | Repaired Lgt. Treads 851 | -10/Materials | Entered Mines 1026 | -10/Mines | Found a damaged Exp. Sensor Array with a note attached 1029 | -10/Mines | Found Prototype Device 1100 | -10/Mines | Core integrity fell below 50% 1145 | -10/Mines | Deemed a non-threat by the Exiles lab entrance 1145 | -10/Mines | Discovered new exit (range 5) 1354 | -10/Mines | Assembled infested the area 1386 | -10/Mines | Destroyed by D-53 Grenadier with Mini Grenade Launcher Last Messages --------------- 01271_ G-47 Trooper destroyed. 01271_ Switching to secondary target: G-34 Mercenary. 01272_ K-01 Serf collects debris. 01276_ T-07 Excavator destroyed. 01278_ R-06 Scavenger collects Particle Gun. 01280_ G-34 Mercenary destroyed. 01280_ R-06 Scavenger destroyed. 01294_ Dropped Beam Rifle. 01296_ Acquired 10 matter. 01299_ Dropped Lgt. Ion Engine. 01320_ R-06 Scavenger destroyed. 01354_ ALERT: Infestation in the mines, dispatching Demolisher response squad. 01375_ R-06 Scavenger collects Tractor Beam. 01382_ C-30 ARC bursts open, deploying its payload. 01382_ D-53 Grenadier unfolds itself. 01384_ Lgt. Ion Engine destroyed. 01386_ Beam Rifle destroyed. Map ----- +----------------------------------------------------+ | ??# #??????# #???????????????????????????? | | ??# #??????## ##???????????????????????????? | | ??# ##################????????????????????????? | | ??# %%=%* ##???????????????????????? | | ??# !%=[ #???????????????????????? | | ??################ #???????????????????????? | | ?????????????????# #???????????????????????? | | ????????????????##% ##???????????????????????? | | ??????????????### ! ##????????????????????????? | | ?????????????## ##?????????????????????????? | | ?????????????# #??????????????????????????? | | ?????????????## #??????????????????????????? | | ??????????????### #??????????????????????????? | | ????????????????# ###????????????????????????? | | ????????????????# ######???????????????????? | | ????????????????# #???????????????????? | | ???######???????### #### #???????????????????? | | ???? #????????# #????????????????????????? | | ????? #??????## #????????????????????????? | | ??????# ??????# ########?????????????????? | | ???????# ##????# % ## # ##????????????????? | | ???????# #????# d d #????????????????? | | ??????## #????# ##???????????????? | | ?????## ##???## ##??????????????? | | ????## ###### ###????????????? | | ???## @ #????????????? | | ???# #???????????? | | ???# ## #### #### # #???????????? | | ???????## #??# #??# ##? ##???????????? | | ????????# ?? #??## ##???##????????????? | | ????????# ######???## ##??????????????????? | | ????????## ##????????? ##???????????????????? | | ?????????####?????????? #????????????????????? | | ??????????????????????? #????????????????????? | | ??????????????????????? ##????????????????????? | | ??????????????????????##??????????????????????? | | ??????????????????????????????????????????????? | | ??????????????????????????????????????????????? | | ??????????????????????????????????????????????? | | | | | | | | | | | | | | | | | | | | | | | +----------------------------------------------------+ Best States ------------- Heat Dissipation 25 Energy Generation 10 Energy Capacity 125 Matter Stores 300 Matter Capacity 300 Sight Range 16 Terrain Scan Density 10 Evasion (%) 40 Recoil Reduction 2 Item Schematics ----------------- None Robot Schematics ------------------ None Fabricated ------------ Nothing Alien Tech Used ----------------- None Achievements -------------- None Challenges ------------ None Game ------ Seed ChargeLinearCompressor Manual? 0 Play Time 00:14:44 Cumulative 5.9 hours Start 2025.01.11 @ 19:38:34 End 2025.01.11 @ 19:50:35 Sessions 1 Manual Loads 0 Difficulty Rogue Special Mode None Game No. 8 Rogue 8 Adventurer 0 Explorer 0 Win Type - Total 0 Types 0/0/0/0/0/0/0/0/0 Lore% 8 Gallery% 11 Achievement% 11 Wizard Run 0 Options --------- Layout 1 ASCII 0 Keyboard 0 Movement Mouse Keybinds 0 Fullscreen 0 Font 24/Smallcaps Map View 50x35 Zoom Use 0% Tactical HUD 1 Map Filters NONE Filters NONE Steam 1 RUN: 0144134a-5c56-4f2d-8b22-56504e73ea09